Cogmind - Beta 15 @@@ ROGUE MODE // 2025.06.21 @ 18:23:55 Player: Skysub Result: Destroyed by Autobeam Turret with Autobeam Performance ------------- Evolutions (0) 0 Regions Visited (2) 400 Robots Destroyed (29) 145 Value Destroyed (838) 838 Prototype IDs (11) 220 Alien Tech Used (0) 0 Bonus (0) 0 TOTAL SCORE: 1603 Bonus ------- None Cogmind --------- Core Integrity 0/250 Matter 300/300 Energy 99/100 System Corruption 0% Temperature Cool (18) Movement Rolling (120) Ox1 Location -10/Subcaves Parts ------- > --- POWER (1) -------- Subdweller Power Source > --- PROPULSION (2) --- Spiked Treads Subdweller Monowheel > --- UTILITY (2) ------ Large Storage Unit > --- WEAPON (2) ------- Subdweller Machine Gun Subdweller Machine Gun > --- INVENTORY (15) --- Subdweller Power Source Spiked Treads Light Humpback Subdweller Optics Subdweller Optics Subdweller Optics Scrap Shield Scrap Shield Powered Cannon Subdweller Machine Gun Subdweller Machine Gun Peak State ------------ > --- POWER ------------ Subdweller Power Source > --- PROPULSION ------- Spiked Treads Subdweller Monowheel > --- UTILITY ---------- Large Storage Unit > --- WEAPON ----------- Subdweller Machine Gun Subdweller Machine Gun > --- INVENTORY -------- Subdweller Monowheel Light Humpback Subdweller Optics Subdweller Optics Subdweller Optics Scrap Shield Scrap Shield Powered Cannon Subdweller Machine Gun Subdweller Machine Gun [Rating: 14] Favorites ----------- Power Subdweller Power Source Engine Subdweller Power Source Propulsion Light Treads Treads Light Treads Wheel Subdweller Monowheel Utility Large Storage Unit Device Structural Scanner Storage Large Storage Unit Weapon Assault Rifle Ballistic Gun Assault Rifle Launcher Grenade Launcher Special Weapon Mining Laser Build | -11 -10 -10 ------- Run | Yrd Mat Sub Slots Evolved . | . . . Power . | . . . Propulsion . | . . . Utility . | . . . Weapon . | . . . Parts Attached 26 | 7 3 16 Power 4 | 1 . 3 Engine 4 | 1 . 3 Core . | . . . Reactor . | . . . Propulsion 8 | 3 . 5 Treads 5 | 2 . 3 Leg . | . . . Wheel 3 | 1 . 2 Hover . | . . . Flight . | . . . Utility 4 | 1 3 . Device 2 | 1 1 . Storage 2 | . 2 . Processor . | . . . Hackware . | . . . Protection . | . . . Artifact . | . . . Weapon 10 | 2 . 8 Energy Gun . | . . . Energy Cannon . | . . . Ballistic Gun 6 | 2 . 4 Ballistic Cannon . | . . . Launcher 3 | . . 3 Special Weapon 1 | . . 1 Impact Weapon . | . . . Slashing Weapon . | . . . Piercing Weapon . | . . . Special Melee Weapon . | . . . Unidentified Prototypes . | . . . Parts Lost 11 | . . 11 Power 2 | . . 2 Propulsion 2 | . . 2 Utility 1 | . . 1 Weapon 6 | . . 6 Highest Loss Streak 2 | . . 2 To Critical Strikes . | . . . Average Backups 9 | 3 6 10 Power . | . . . Propulsion 1 | . 1 1 Utility 3 | . . 4 Weapon 3 | 1 4 4 Tool/Special . | . . . Unused Backups 14 | 1 1 12 Power 2 | . 1 1 Propulsion 1 | 1 . . Utility 7 | . . 7 Weapon 4 | . . 4 Tool/Special . | . . . Average Slot Usage (%) 87 | . 94 85 Engine 13 | . 13 13 Treads 26 | . 28 26 Wheel 1 | . . 1 Device 4 | . 13 1 Storage 13 | . 9 14 Ballistic Gun 20 | . 27 18 Launcher 6 | . . 8 Peak Build Rating 14 | 8 9 14 Average Rating 9 | 4 7 9 On Entrance 5 | . 8 7 Naked Turns . | . . . Heaviest Build 33 | 10 30 33 Greatest Support 40 | 20 40 40 Greatest Overweight (x) 1 | 1 1 1 Average Overweight (x) . | . . . Largest Inventory Capacity 15 | 5 15 15 Average Capacity 14 | 5 11 15 Most Carried 15 | 5 8 15 Average Carried 11 | 3 6 12 Final Capacity 15 | 5 15 15 Final Carried 15 | 5 8 15 Class Distribution -------------------- 97% | Mutant Dominant Class ---------------- Mutant | -10/Materials Mutant | -10/Subcaves Resources | -11 -10 -10 ----------- Run | Yrd Mat Sub Matter Collected 1234 | 312 230 692 Remotely . | . . . Salvage Created 1009 | 84 244 681 Parts 84 | 12 20 52 Haulers Intercepted 1 | . 1 . Recyclers Shooed 1 | . 1 . Parts Field Recycled . | . . . Retrieved Matter . | . . . Parts Self-Destructed 27 | . . 27 Prevented . | . . . Kills | -11 -10 -10 ------- Run | Yrd Mat Sub Combat Hostiles Destroyed 22 | . 4 18 Guns 11 | . 4 7 AOE 11 | . . 11 Classes Destroyed 9 | 1 5 3 Builder 1 | . 1 . Tunneler 4 | 4 . . Hauler 1 | . 1 . Recycler 1 | . 1 . Swarmer 3 | . 3 . Grunt 4 | . 1 3 Sentry 1 | . . 1 Cobbler 1 | . . 1 Subdweller 14 | . . 14 Best Kill Streak 4 | 4 2 3 Combat Bots Only 3 | . 2 3 Max Kills in Single Turn 2 | 1 1 2 Gunslinging . | . . . Exploded 2 | . . 2 Melee . | . . . Uniques/NPCs Destroyed . | . . . Combat | -11 -10 -10 -------- Run | Yrd Mat Sub Hostile Shots Fired 122 | . 21 101 Missed 33 | . 7 26 Hits 89 | . 14 75 Projectile 89 | . 14 75 Critical Strikes 2 | . . 2 Damage Taken 1680 | . 133 1547 Core 252 | . 9 243 Absorbed by Shields . | . . . Core Remaining (%) 100 | 100 . . Volleys Fired 125 | 7 33 85 Largest 2 | 2 2 2 Hottest 100 | 40 40 100 Shots Fired 212 | 14 66 132 Gun 181 | 14 66 101 Cannon . | . . . Launcher 28 | . . 28 Special 3 | . . 3 Kinetic 181 | 14 66 101 Thermal 3 | . . 3 Explosive 28 | . . 28 Electromagnetic . | . . . Robot Hit Streak 10 | 3 6 10 Robot Miss Streak 4 | 3 4 2 Penetration Max . | . . . Secondary Targets . | . . . Shots Hit Robots 99 | 6 32 61 Core Hits 49 | 4 13 32 Critical Kills . | . . . Critical Parts Destroyed 1 | . . 1 Critical Strikes 2 | . . 2 Destroy 2 | . . 2 Melee Attacks . | . . . Impact . | . . . Slashing . | . . . Piercing . | . . . Sneak Attacks . | . . . Combat Hostiles . | . . . Follow-up Attacks . | . . . Damage Inflicted 2426 | 80 482 1864 Guns 1409 | 80 465 864 Cannons . | . . . Explosions 1000 | . . 1000 Melee . | . . . Ramming 17 | . 17 . Kinetic 1409 | 80 465 864 Thermal . | . . . Explosive 1000 | . . 1000 Electromagnetic . | . . . Impact . | . . . Slashing . | . . . Piercing . | . . . Highest Corruption . | . . . Average Corruption . | . . . Corruption Purged . | . . . Corruption Blocked . | . . . Overload Shots . | . . . Overflow Damage 4 | . . 4 Projectiles . | . . . Explosions 4 | . . 4 Melee . | . . . Knockbacks . | . . . Impact . | . . . Kinetic . | . . . Secondary . | . . . Self-Inflicted Damage 18 | . . 18 Shots 2 | . . 2 Rammed 4 | . 4 . Targets Rammed 4 | . 4 . Kicked . | . . . Crushed . | . . . Highest Temperature . | . . . Average Temperature . | . . . Received Heat Transfer 189 | . 24 165 Siege Activations . | . . . Martial Activations . | . . . Shielding Activations . | . . . Robots Disrupted . | . . . Combat Hostiles . | . . . Robots Corrupted . | . . . Combat Hostiles . | . . . Parts Fried . | . . . Impact Corruptions . | . . . Robots Melted . | . . . Combat Hostiles . | . . . Parts Melted . | . . . Heat Transferred . | . . . Parts Sabotaged . | . . . Parts Stolen . | . . . Parts Stripped . | . . . Power Chain Reactions . | . . . Alert | -11 -10 -10 ------- Run | Yrd Mat Sub Maximum Alert Level . | . . . Low Security (%) 100 | 100 100 . Level 1 . | . . . Level 2 . | . . . Level 3 . | . . . Level 4 . | . . . Level 5 . | . . . High Security . | . . . Max Security . | . . . Peak Influence 65 | 10 65 . Initial . | . . . Average 8 | 1 9 . Influence Increases 342 | 20 132 190 Destroy 0b10 Robot/C 160 | . 80 80 Destroy 0b10 Robot/NC 35 | 20 15 . Destroy Leader 42 | . 22 20 Lose Combat Pursuer 105 | . 15 90 Influence Decreases 342 | 20 126 196 Entered New Map 4 | . . 4 Time Decay 318 | 20 126 172 Lost Part 20 | . . 20 Squads Dispatched 4 | . 4 . Investigation 2 | . 2 . Extermination . | . . . Reinforcement 2 | . 2 . Assault . | . . . Garrison . | . . . Intercept . | . . . Searches Triggered . | . . . Construction Impeded . | . . . Haulers Reinforced . | . . . Active Scanning Responses . | . . . Cargo Convoy Interrupts . | . . . Stealth | -11 -10 -10 --------- Run | Yrd Mat Sub Distress Signals 1 | . 1 . Communications Jammed . | . . . Distress Signals . | . . . Times Spotted 33 | . 10 23 Peak Tracking Total 6 | . 3 6 Tactical Retreats 2 | . 1 1 Traps | -11 -10 -10 ------- Run | Yrd Mat Sub Traps Triggered 7 | . 3 4 Indirectly . | . . . Trap Hack Attempts . | . . . Triggered . | . . . Disarmed . | . . . Reprogrammed . | . . . Reused . | . . . Traps Extracted . | . . . Installed . | . . . Triggered . | . . . Machines | -11 -10 -10 ---------- Run | Yrd Mat Sub Machines Disabled 1 | . . 1 Max in Single Turn 1 | . . 1 Machines Repaired . | . . . Machines Dismantled . | . . . Machines Sabotaged . | . . . Overloaded Fab Kills . | . . . Hacking | -11 -10 -10 --------- Run | Yrd Mat Sub Machines Accessed 5 | . 3 2 Terminals 2 | . 2 . Fabricators . | . . . Repair Stations . | . . . Recycling Units 1 | . 1 . Scanalyzers . | . . . Garrison Access . | . . . Total Hacks 14 | . 9 5 Successful 8 | . 3 5 Failed 6 | . 6 . Catastrophic 1 | . 1 . Database Lockouts . | . . . Manual 3 | . 3 . Terminals 5 | . 5 . Fabricators . | . . . Repair Stations . | . . . Recycling Units 4 | . 4 . Scanalyzers . | . . . Garrison Access . | . . . Terminal Hacks 6 | . 1 5 Record 4 | . . 4 Zone Layout 1 | . 1 . Proto ID Catalog 1 | . . 1 Fabricator Hacks . | . . . Repair Station Hacks . | . . . Recycling Unit Hacks 2 | . 2 . Report Inventory 1 | . 1 . Retrieve Components 1 | . 1 . Scanalyzer . | . . . Garrison Access Hacks . | . . . Unauthorized Hacks . | . . . Terminals . | . . . Fabricators . | . . . Repair Stations . | . . . Recycling Units . | . . . Scanalyzers . | . . . Garrison Access . | . . . Data Cores Recovered . | . . . Used . | . . . Hacking Detections 3 | . 3 . Full Trace Events 1 | . 1 . Feedback Events . | . . . Feedback Blocked . | . . . Robot Schematics Acquired . | . . . Robots Built . | . . . Authchips . | . . . Time . | . . . Total Robot Build Rating . | . . . Part Schematics Acquired . | . . . Parts Built . | . . . Authchips . | . . . Time . | . . . Total Part Build Rating . | . . . Parts Repaired . | . . . Time . | . . . Parts Recycled . | . . . Recycled Matter . | . . . Retrieved Matter . | . . . Retrieved Components 10 | . 10 . Parts Scanalyzed . | . . . Part Schematics Acquired . | . . . Parts Damaged . | . . . Bothacking | -11 -10 -10 ------------ Run | Yrd Mat Sub Used RIF Installer . | . . . Robots Hacked . | . . . Non-combat . | . . . Combat . | . . . Robot Hacks Applied . | . . . Relay Couplers Released . | . . . Fabnet Peak Effective % . | . . . Robots Rewired . | . . . Allies Hacked . | . . . Hacks Repelled . | . . . Allies | -11 -10 -10 -------- Run | Yrd Mat Sub Total Allies . | . . . Largest Group . | . . . Highest-Rated Group . | . . . Highest-Rated Ally . | . . . Total Orders . | . . . Ally Attacks . | . . . Total Damage . | . . . Kills . | . . . Allies Corrupted . | . . . Allies Melted . | . . . Intel | -11 -10 -10 ------- Run | Yrd Mat Sub Active Infowar (turns) 1256 | 24 775 457 Terrain 310 | 24 286 . Structural 946 | . 489 457 Robot Analysis Total . | . . . Derelict Logs Recovered 1 | . . 1 Drone Launches . | . . . Drone Recoveries . | . . . Exploration | -11 -10 -10 ------------- Run | Yrd Mat Sub Turns Passed 4408 | 131 782 3495 Spaces Moved 2551 | 67 402 2082 Core 16 | 16 . . Treads 2202 | 51 402 1749 Legs . | . . . Wheels 333 | . . 333 Hover . | . . . Flight . | . . . Fastest Speed 50 | 50 160 120 Average Speed 154 | 141 161 154 Slowest Speed 240 | 160 240 240 Overloaded Moves . | . . . Propulsion Burnouts . | . . . Robots Hopped . | . . . Potential Cave-ins . | . . . Cave-ins Triggered . | . . . Exploration Rate (%) 58 | 4 75 95 Regions Visited 2 Branch Regions 1 Pre-discovered Areas 1 | . . 1 Known Exits Taken . | . . . Unknown Exits Taken 2 | 1 1 . Scrap Searched 10 | . . 10 Spaces Dug 26 | . . 26 Terrain Destroyed 138 | . . 138 Melee . | . . . Projectile . | . . . AOE 138 | . . 138 Terrain Rammed . | . . . Walls Destroyed . | . . . Machines Disabled . | . . . Actions | -11 -10 -10 --------- Run | Yrd Mat Sub Total 2781 | 87 462 2232 Wait 28 | . 12 16 Move 2549 | 66 401 2082 Hop . | . . . Pick Up 28 | 5 4 19 Fast Attach 12 | 7 4 1 Attach 10 | . 1 9 Detach 1 | 1 . . Swap 12 | . 2 10 Drop 12 | 1 1 10 Fire 125 | 7 33 85 Melee . | . . . Ram . | . . . Kick . | . . . Crush 4 | . 4 . Escape Stasis . | . . . Rewire . | . . . Trap . | . . . Miscellaneous . | . . . Route ------- -11/Scrapyard -10/Materials (discovered 6 exits: [*Mat x3] / [*Min x2] / *Sub) -10/Subcaves (discovered 3 exits: *Mat x2 / [*Rec]) History --------- Turn | Location | Event 16 | -11/Scrapyard | Discovered new exit (range 16) 132 | -11/Scrapyard | Entered Materials 133 | -10/Materials | Met a group of wandering Federalists 304 | -10/Materials | Build established: Mutant 337 | -10/Materials | Discovered new exit (range 10) 442 | -10/Materials | Discovered new exit (range 11) 633 | -10/Materials | Discovered new exit (range 10) 789 | -10/Materials | Discovered new exit (range 8) 892 | -10/Materials | Discovered new exit (range 8) 892 | -10/Materials | Discovered new exit (range 15) 914 | -10/Materials | Entered Subcaves 915 | -10/Subcaves | Approached by a straggling Scientist 1145 | -10/Subcaves | Identified exit to Materials 1393 | -10/Subcaves | Shifting Twisted Machinery released Sub. Machine Gun 1394 | -10/Subcaves | Shifting Twisted Machinery released Sub. Machine Gun 1460 | -10/Subcaves | Ambushed by Subdwellers from Twisted Machinery 1572 | -10/Subcaves | Discovered exit to Materials (range 16) 1658 | -10/Subcaves | A swath of the cavern ceiling suddenly collapsed 2236 | -10/Subcaves | Shifting Twisted Machinery released Scrap Shield 2245 | -10/Subcaves | Shifting Twisted Machinery released Sub. Monowheel 2598 | -10/Subcaves | Shifting Twisted Machinery released Spk. Treads 2772 | -10/Subcaves | Shifting Twisted Machinery released Sub. Laser 2883 | -10/Subcaves | Learned location of Zion (-6) 2883 | -10/Subcaves | Met a Zionite searching for "candidates" 3062 | -10/Subcaves | Ambushed by Subdweller buried in earth 3479 | -10/Subcaves | A swath of the cavern ceiling suddenly collapsed 3675 | -10/Subcaves | Core integrity fell below 50% 3856 | -10/Subcaves | Visited 4L-MR0's lab 3872 | -10/Subcaves | Found Powered Cannon 4003 | -10/Subcaves | Visited Clippyterm 4007 | -10/Subcaves | Learned 40 Factory zone layouts 4313 | -10/Subcaves | Core integrity fell below 20% 4405 | -10/Subcaves | Discovered new exit (range 8) 4409 | -10/Subcaves | Destroyed by Autobeam Turret with Autobeam Last Messages --------------- Found 31 Matter. Acquired 31 matter. Searching scrap... Found Battle Rifle. Found Spk. Treads. Found 35 Matter. Acquired 10 matter. Searching scrap... Found Battle Cannon. Found 58 Matter. Dropped Spk. Treads. Acquired Spk. Treads. Acquired 20 matter. Dropped Broken Sub. Machine Gun. Acquired Sub. Machine Gun. 8C-UYH(u) tweaks Twisted Machinery. 8C-UYH(u) builds Twisted Machinery. Subatomizers dissect the Sub. Machine Gun. Acquired 22 matter. EXIT=FOUND Map ----- +----------------------------------------------------+ | ?## " ##?????? ### ### ######## | | ??# "## #????? #### ############### ## | | ??# ###" #????# ##?#### ########????######## | | #?###?# ##???? #??##### ##???????????###### | | ##????# % ###??### ????## ###????????????????? | | ##???# ##???# #????### ###????????????????? | | ###?#### ##??# #????## ##?????????????????? | | ####### ##?# ????## ##?????????????????? | | #### #?? ????## ##########?????????? | | ### #?? ????### ##########?????????? | | #### #### ? ###### ### ##?????????? | | ???# ## ##?## ## ## # ## ##?????????? | | ???# ### # # # " " " ##?????????? | | ???## #?## """ % %% " ###?????????? | | ????###??## "" "% ### ###?????????? | | ??????????#### # """" ######## ###?????????? | | ??????????????###? " ######### ##?????????? | | ??????????????????" ####??#### ##?????????? | | ?????????????????? ####???## ##?????????? | | ????????????????? ????????## ###?????????? | | ?????????????????????######## ### ####?????????? | | ?????????????????????#""" "# ########??????????? | | ?????????????????????#" # ######???????????? | | ?????????????????????#" # #???????????????? | | ????????????????????##""t &%& #???????????????? | | ???????????????###??#< @ #???????????????? | | ###????????????# ##?##""t #???????????????? | | ! #???????????## #??#" # #???????????????? | | %#???????????# ####" ## #???????????????? | | ###????????#### ##""" "#? #???????????????? | | "#????????## #######? #??????????????? | | ########??# """ ######?? #?????????????? | | "" ## #### "[" # ##?# #?????????????? | | " "## """ #??# #?????????????? | | "## #??? #?????????????? | | ##### ###### ##???####?????????????? | | ##?? ?????#### ##?????????????????????? | | # #??# ????????# ## #??????????????????????? | | ###??# ????###?## #??#??????????????????????? | | "##?# #????# ##?# ###???????????????????????? | | ""### #???## ### # #???????????????????????? | | = """"#"""##?## # #???????????????????##### | | %"""" ""?## #??????????????????## | | &""" "" ### #??????????????????# | | " """% ##??????????????????# ^ | | #### % #???????????????????# | | ##### % ##???????????????????## | | ### ## ##?????????????????????## | | ### #####???????????????????????## | | ##????????????????????????????### | +----------------------------------------------------+ Best States ------------- Heat Dissipation 25 Energy Generation 15 Energy Capacity 250 Matter Stores 300 Matter Capacity 300 Sight Range 16 Terrain Scan Range 16 Terrain Scan Density 10 Evasion (%) 40 Recoil Reduction 2 Item Schematics ----------------- None Robot Schematics ------------------ None Fabricated ------------ Nothing Repaired ---------- Nothing Alien Tech Used ----------------- None Achievements -------------- None Challenges ------------ None Game ------ Seed BiocellTargetingBattery Manual? 0 Play Time 00:20:17 Cumulative 123.6 hours Start 2025.06.21 @ 18:06:17 End 2025.06.21 @ 18:23:55 Sessions 1 Manual Loads 0 Difficulty Rogue Special Mode None Game No. 131 Rogue 131 Adventurer 0 Explorer 0 Win Type - Total 2 Types 1/0/0/1/0/0/0/0/0/0 Lore% 60 Gallery% 56 Achievement% 51 Wizard Run 0 Options --------- Layout 1 ASCII 0 Keyboard 1 Movement Numpad Keybinds 0 Fullscreen 1 Font 32/SmallcapsGlow Map View 77x35 Zoom Use 0% Tactical HUD 0 Map Filters NONE Filters NONE Steam 1 RUN: e4c3e890-f785-4821-b2ef-3b40058e5c82